fUSD/lending_fUSD_20240220
["ID","MTS","AMOUNT","RATE_DAILY","PERIOD"]
[314524618,1708404644904,-4206.68,0.00036227,2]
[314524620,1708404644913,-500.0,0.00036227,2]
[314524622,1708404644922,-500.0,0.00036227,2]
[314524624,1708404644930,-812.79,0.00036227,2]
[314524626,1708404644939,-500.0,0.00036227,2]
[314524628,1708404644948,-1327.49,0.00036227,2]
[314524630,1708404644958,-500.0,0.00036227,2]
[314524632,1708404644967,-500.0,0.00036227,2]
[314524634,1708404644976,-2262.08,0.00036227,2]
[314524636,1708404644990,-2369.72,0.00036227,2]
[314524638,1708404644999,-670.05,0.00036227,2]
[314524640,1708404645008,-823.48,0.00036227,2]
[314524642,1708404645017,-500.0,0.00036227,2]
[314524643,1708404645026,-3631.45,0.00036227,2]
[314524644,1708404645035,-1466.49,0.00036227,2]
[314524645,1708404645044,-917.5,0.00036227,2]
[314524646,1708404645053,-500.0,0.00036227,2]
[314524647,1708404645062,-500.0,0.00036227,2]
[314524648,1708404645072,-1816.69,0.00036227,2]
[314524649,1708404645081,-617.42,0.00036227,2]
[314524651,1708404645090,-918.81,0.00036227,2]
[314524652,1708404645099,-1426.37,0.00036227,2]
[314524654,1708404645108,-500.0,0.00036227,2]
[314524656,1708404645117,-1332.3,0.00036227,2]
[314524658,1708404645126,-2209.99,0.00036227,2]
[314524660,1708404645136,-500.0,0.00036227,2]
[314524662,1708404645145,-1559.19,0.00036227,2]
[314524664,1708404645155,-500.0,0.00036227,2]
[314524665,1708404645164,-500.0,0.00036227,2]
[314524666,1708404645174,-500.0,0.00036227,2]
[314524667,1708404645183,-6563.77,0.00036227,2]
[314524668,1708404645193,-500.0,0.00036227,2]
[314524669,1708404645202,-500.0,0.00036227,2]
[314524670,1708404645211,-1224.46,0.00036227,2]
[314524671,1708404645221,-2386.58,0.00036227,2]
[314524672,1708404645230,-500.0,0.00036227,2]
[314524673,1708404645239,-2001.87,0.00036227,2]
[314524674,1708404645249,-1466.78,0.00036227,2]
[314524675,1708404645258,-642.62,0.00036227,2]
[314524676,1708404645269,-500.0,0.00036227,2]
[314524677,1708404645278,-166.55,0.00036229,2]
[314524678,1708404645287,-180.61625505,0.00036245,2]
[314524679,1708404645297,-5538.11056031,0.00036257,9]
[314524680,1708404645306,-177.58,0.00036276,2]
[314524681,1708404645316,-619.14841119,0.00036293,7]
[314524682,1708404645325,-1979.497093,0.000363,24]
[314524683,1708404645334,-500.0,0.00036325,2]
[314524684,1708404645344,-500.0,0.00036325,2]
[314524685,1708404645352,-500.0,0.00036325,2]
[314524686,1708404645361,-500.0,0.00036325,2]
[314524687,1708404645372,-500.0,0.00036325,2]
[314524688,1708404645381,-500.0,0.00036325,2]
[314524689,1708404645391,-500.0,0.00036325,2]
[314524690,1708404645400,-679.06,0.00036325,2]
[314524691,1708404645409,-500.0,0.00036325,2]
[314524692,1708404645419,-500.0,0.00036325,2]
[314524693,1708404645428,-500.0,0.00036325,2]
[314524694,1708404645437,-500.0,0.00036325,2]
[314524695,1708404645446,-195.60273181,0.00036325,2]
[314524696,1708404645459,-500.0,0.00036325,2]
[314524697,1708404645471,-500.0,0.00036325,2]
[314524698,1708404645481,-500.0,0.00036325,2]
[314524699,1708404645490,-500.0,0.00036325,2]
[314524700,1708404645499,-500.0,0.00036325,2]
[314524701,1708404645508,-500.0,0.00036325,2]
[314524702,1708404645518,-500.0,0.00036325,2]
[314524703,1708404645527,-500.0,0.00036325,2]
[314524704,1708404645537,-500.0,0.00036325,2]
[314524705,1708404645546,-500.0,0.00036325,2]
[314524706,1708404645555,-500.0,0.00036325,2]
[314524707,1708404645565,-534.03401778,0.00036325,2]
[314524708,1708404645575,-500.0,0.00036325,2]
[314524709,1708404645585,-500.0,0.00036325,2]
[314524710,1708404645596,-500.0,0.00036325,2]
[314524711,1708404645608,-569.62006453,0.00036325,2]
[314524712,1708404645619,-532.77,0.00036325,2]
[314524713,1708404645628,-500.0,0.00036325,2]
[314524714,1708404645638,-152.70854521,0.00036325,2]
[314524715,1708404645647,-500.0,0.00036325,2]
[314524716,1708404645656,-500.0,0.00036325,2]
[314524717,1708404645666,-500.0,0.00036325,2]
[314524718,1708404645675,-500.0,0.00036325,2]
[314524720,1708404645684,-570.34086412,0.00036325,2]
[314524721,1708404645694,-1000.0,0.00036325,2]
[314524722,1708404645703,-500.0,0.00036325,2]
[314524723,1708404645712,-500.0,0.00036325,2]
[314524724,1708404645721,-353.76698979,0.00036325,2]
[314524725,1708404645730,-500.0,0.00036325,2]
[314524726,1708404645739,-500.0,0.00036325,2]
[314524727,1708404645749,-500.0,0.00036325,2]
[314524728,1708404645758,-500.0,0.00036325,2]
[314524729,1708404645768,-500.0,0.00036325,2]
[314524730,1708404645782,-583.81,0.00036325,2]
[314524731,1708404645790,-500.0,0.00036325,2]
[314524732,1708404645799,-500.0,0.00036325,2]
[314524733,1708404645808,-547.71416792,0.00036325,2]
[314524734,1708404645818,-500.0,0.00036325,2]
[314524735,1708404645827,-500.0,0.00036325,2]
[314524736,1708404645836,-904.92,0.00036325,2]
[314524737,1708404645846,-500.0,0.00036325,2]
[314524738,1708404645855,-500.0,0.00036325,2]
[314524739,1708404645865,-500.0,0.00036325,2]
[314524740,1708404645876,-500.0,0.00036325,2]
[314524741,1708404645885,-500.0,0.00036325,2]
[314524742,1708404645898,-500.0,0.00036325,2]
[314524743,1708404645907,-500.0,0.00036325,2]
[314524744,1708404645916,-500.0,0.00036325,2]
[314524745,1708404645926,-500.0,0.00036325,2]
[314524746,1708404645935,-500.0,0.00036325,2]
[314524747,1708404645944,-500.0,0.00036325,2]
[314524748,1708404645953,-500.0,0.00036325,2]
[314524749,1708404645963,-540.25614815,0.00036325,2]
[314524750,1708404645972,-500.0,0.00036325,2]
[314524751,1708404645982,-500.0,0.00036325,2]
[314524752,1708404645991,-500.0,0.00036325,2]
[314524753,1708404646001,-500.0,0.00036325,2]
[314524754,1708404646010,-500.0,0.00036325,2]
[314524755,1708404646019,-500.0,0.00036325,2]
[314524756,1708404646028,-500.0,0.00036325,2]
[314524757,1708404646037,-500.0,0.00036325,2]
[314524758,1708404646047,-500.0,0.00036325,2]
[314524759,1708404646056,-500.0,0.00036325,2]
[314524760,1708404646066,-500.0,0.00036325,2]
[314524761,1708404646075,-500.0,0.00036325,2]
[314524762,1708404646085,-500.0,0.00036325,2]
[314524763,1708404646094,-500.0,0.00036325,2]
[314524764,1708404646103,-703.38,0.00036325,2]
[314524765,1708404646112,-500.0,0.00036325,2]
[314524766,1708404646122,-1034.21160812,0.00036325,7]
[314524769,1708404646264,-500.0,0.00036325,2]
[314524771,1708404646287,-530.4065638,0.00036325,2]
[314524773,1708404646295,-500.0,0.00036325,2]
[314524775,1708404646305,-500.0,0.00036325,2]
[314524777,1708404646315,-605.68107119,0.00036325,2]
[314524779,1708404646323,-500.0,0.00036325,2]
[314524781,1708404646333,-417.87934262,0.00036325,2]
[314524783,1708404646342,-500.0,0.00036325,2]
[314524785,1708404646351,-500.0,0.00036325,2]
[314524787,1708404646360,-500.0,0.00036325,2]
[314524789,1708404646369,-519.07774052,0.00036325,2]
[314524791,1708404646379,-505.96,0.00036325,2]
[314524793,1708404646388,-603.72340769,0.00036325,2]
[314524795,1708404646397,-500.0,0.00036325,2]
[314524797,1708404646407,-500.0,0.00036325,2]
[314524799,1708404646416,-633.09477873,0.00036325,2]
[314524801,1708404646425,-500.0,0.00036325,2]
[314524803,1708404646434,-500.0,0.00036325,2]
[314524805,1708404646443,-500.0,0.00036325,2]
[314524807,1708404646452,-500.0,0.00036325,2]
[314524809,1708404646461,-500.0,0.00036325,2]
[314524811,1708404646470,-500.0,0.00036325,2]
[314524813,1708404646479,-500.0,0.00036325,2]
[314524815,1708404646488,-177.7877092,0.00036325,2]
[314524817,1708404646497,-500.0,0.00036325,2]
[314524819,1708404646506,-500.0,0.00036325,2]
[314524821,1708404646515,-500.0,0.00036325,2]
[314524823,1708404646524,-601.96,0.00036325,2]
[314524825,1708404646533,-500.0,0.00036325,2]
[314524827,1708404646542,-500.0,0.00036325,2]
[314524829,1708404646551,-500.0,0.00036325,2]
[314524831,1708404646560,-571.34,0.00036325,2]
[314524833,1708404646569,-562.44,0.00036325,2]
[314524835,1708404646579,-510.24661743,0.00036325,2]
[314524837,1708404646589,-500.0,0.00036325,2]
[314524839,1708404646598,-510.97,0.00036325,2]
[314524841,1708404646607,-500.0,0.00036325,2]
[314524843,1708404646616,-500.0,0.00036325,2]
[314524844,1708404646626,-505.61213077,0.00036325,2]
[314524846,1708404646634,-500.0,0.00036325,2]
[314524848,1708404646643,-500.0,0.00036325,2]
[314524850,1708404646652,-500.0,0.00036325,2]
[314524852,1708404646662,-500.0,0.00036325,2]
[314524854,1708404646670,-500.0,0.00036325,2]
[314524856,1708404646680,-500.0,0.00036325,2]
[314524858,1708404646689,-541.71810488,0.00036325,2]
[314524860,1708404646698,-500.0,0.00036325,2]
[314524862,1708404646707,-500.0,0.00036325,2]
[314524864,1708404646716,-500.0,0.00036325,2]
[314524866,1708404646725,-500.0,0.00036325,2]
[314524867,1708404646735,-519.7862339,0.00036325,2]
[314524868,1708404646744,-500.0,0.00036325,2]
[314524869,1708404646753,-500.0,0.00036325,2]
[314524870,1708404646761,-500.0,0.00036325,2]
[314524871,1708404646770,-500.0,0.00036325,2]
[314524872,1708404646779,-500.0,0.00036325,2]
[314524873,1708404646788,-500.0,0.00036325,2]
[314524874,1708404646797,-500.0,0.00036325,2]
[314524875,1708404646806,-500.0,0.00036325,2]
[314524876,1708404646815,-500.0,0.00036325,2]
[314524877,1708404646824,-500.0,0.00036325,2]
[314524878,1708404646833,-500.0,0.00036325,2]
[314524879,1708404646842,-500.0,0.00036325,2]
[314524880,1708404646852,-500.0,0.00036325,2]
[314524881,1708404646861,-500.0,0.00036325,2]
[314524882,1708404646870,-500.0,0.00036325,2]
[314524883,1708404646879,-500.0,0.00036325,2]
[314524884,1708404646890,-1000.0,0.00036325,7]
[314524885,1708404646899,-209.90824244,0.00036337,2]
[314524886,1708404646908,-500.0,0.00036347,2]
[314524887,1708404646917,-523.26484367,0.00036347,2]
[314524888,1708404646927,-535.86,0.00036347,2]
[314524889,1708404646936,-168.32688411,0.00036347,2]
[314524890,1708404646945,-500.0,0.00036347,2]
[314524891,1708404646954,-500.0,0.00036347,2]
[314524892,1708404646964,-500.0,0.00036347,2]
[314524893,1708404646973,-282.06671581,0.00036347,2]
[314524894,1708404646982,-500.0,0.00036347,2]
[314524895,1708404646991,-499.20529514,0.00036347,2]
[314524896,1708404647000,-500.0,0.00036347,2]
[314524897,1708404647009,-500.0,0.00036347,2]
[314524898,1708404647018,-543.12403658,0.00036347,2]
[314524899,1708404647030,-500.0,0.00036347,2]
[314524900,1708404647039,-500.0,0.00036347,2]
[314524901,1708404647048,-500.0,0.00036347,2]
[314524902,1708404647057,-500.0,0.00036347,2]
[314524903,1708404647066,-500.0,0.00036347,2]
[314524904,1708404647075,-500.0,0.00036347,2]
[314524905,1708404647084,-500.0,0.00036347,2]
[314524906,1708404647093,-500.0,0.00036347,2]
[314524907,1708404647102,-500.0,0.00036347,2]
[314524908,1708404647111,-500.0,0.00036347,2]
[314524909,1708404647120,-500.0,0.00036347,2]
[314524910,1708404647129,-524.2912275,0.00036347,2]
[314524911,1708404647139,-500.0,0.00036347,2]
[314524912,1708404647148,-507.21745531,0.00036347,2]
[314524913,1708404647157,-500.0,0.00036347,2]
[314524914,1708404647166,-500.0,0.00036347,2]
[314524915,1708404647176,-500.0,0.00036347,2]
[314524916,1708404647185,-500.0,0.00036347,2]
[314524917,1708404647194,-500.0,0.00036347,2]
[314524918,1708404647203,-500.0,0.00036347,2]
[314524919,1708404647214,-500.0,0.00036347,2]
[314524920,1708404647223,-500.0,0.00036347,2]
[314524921,1708404647232,-500.0,0.00036347,2]
[314524922,1708404647241,-500.0,0.00036347,2]
[314524923,1708404647250,-500.0,0.00036347,2]
[314524924,1708404647259,-500.0,0.00036347,2]
[314524925,1708404647269,-500.0,0.00036347,2]
[314524926,1708404647278,-500.0,0.00036347,2]
[314524927,1708404647286,-500.0,0.00036347,2]
[314524928,1708404647296,-500.0,0.00036347,2]
[314524929,1708404647305,-500.0,0.00036347,2]
[314524930,1708404647314,-500.0,0.00036347,2]
[314524931,1708404647323,-500.0,0.00036347,2]
[314524932,1708404647332,-521.5475877,0.00036347,2]
[314524933,1708404647341,-500.0,0.00036347,2]
[314524934,1708404647351,-500.0,0.00036347,2]
[314524935,1708404647361,-500.24,0.00036347,2]
[314524936,1708404647372,-500.0,0.00036347,2]
[314524937,1708404647381,-500.0,0.00036347,2]
[314524938,1708404647390,-500.0,0.00036347,2]
[314524939,1708404647399,-500.0,0.00036347,2]
[314524940,1708404647409,-500.0,0.00036347,2]
[314524941,1708404647418,-586.58,0.00036347,2]
[314524942,1708404647427,-500.0,0.00036347,2]
[314524943,1708404647436,-500.0,0.00036347,2]
[314524944,1708404647446,-500.0,0.00036347,2]
[314524945,1708404647454,-500.0,0.00036347,2]
[314524946,1708404647463,-500.0,0.00036347,2]
[314524947,1708404647473,-500.0,0.00036347,2]
[314524948,1708404647482,-500.0,0.00036347,2]
[314524949,1708404647491,-500.0,0.00036347,2]
[314524950,1708404647501,-500.0,0.00036347,2]
[314524951,1708404647510,-500.0,0.00036347,2]
[314524952,1708404647519,-500.0,0.00036347,2]
[314524953,1708404647528,-500.0,0.00036347,2]
[314524954,1708404647537,-500.0,0.00036347,2]
[314524955,1708404647546,-510.97242894,0.00036347,2]
[314524956,1708404647555,-500.0,0.00036347,2]
[314524957,1708404647564,-500.0,0.00036347,2]
[314524958,1708404647574,-500.0,0.00036347,2]
[314524959,1708404647584,-500.0,0.00036347,2]
[314524960,1708404647594,-500.0,0.00036347,2]
[314524961,1708404647604,-500.0,0.00036347,2]
[314524962,1708404647614,-500.0,0.00036347,2]
[314524963,1708404647624,-500.0,0.00036347,2]
[314524964,1708404647633,-500.0,0.00036347,2]
[314524965,1708404647643,-500.0,0.00036347,2]
[314524966,1708404647652,-500.0,0.00036347,2]
[314524967,1708404647662,-500.0,0.00036347,2]
[314524968,1708404647670,-580.98607788,0.00036347,2]
[314524969,1708404647681,-500.0,0.00036347,2]
[314524970,1708404647690,-500.0,0.00036347,2]
[314524971,1708404647700,-500.0,0.00036347,2]
[314524972,1708404647709,-500.0,0.00036347,2]
[314524973,1708404647718,-500.0,0.00036347,2]
[314524974,1708404647727,-500.0,0.00036347,2]
[314524975,1708404647737,-500.0,0.00036347,2]
[314524976,1708404647746,-500.0,0.00036347,2]
[314524977,1708404647756,-500.0,0.00036347,2]
[314524978,1708404647765,-556.58087984,0.00036347,2]
[314524979,1708404647775,-507.09386467,0.00036347,2]
[314524980,1708404647784,-500.0,0.00036347,2]
[314524981,1708404647793,-500.0,0.00036347,2]
[314524982,1708404647802,-500.0,0.00036347,2]
[314524983,1708404647811,-500.0,0.00036347,2]
[314524984,1708404647820,-500.0,0.00036347,2]
[314524985,1708404647829,-500.0,0.00036347,2]
[314524986,1708404647838,-500.0,0.00036347,2]
[314524987,1708404647847,-500.0,0.00036347,2]
[314524988,1708404647856,-500.0,0.00036347,2]
[314524989,1708404647865,-500.0,0.00036347,2]
[314524990,1708404647875,-500.0,0.00036347,2]
[314524991,1708404647884,-634.31,0.00036347,2]
[314524992,1708404647893,-269.41717073,0.00036347,2]
[314524993,1708404647901,-500.0,0.00036347,2]
[314524994,1708404647910,-500.0,0.00036347,2]
[314524995,1708404647920,-500.0,0.00036347,2]
[314524996,1708404647928,-514.51,0.00036347,2]
[314524997,1708404647937,-533.99969828,0.00036347,2]
[314524998,1708404647946,-500.0,0.00036347,2]
[314524999,1708404647955,-529.75087078,0.00036347,2]
[314525000,1708404647963,-785.86,0.00036347,2]
[314525001,1708404647972,-540.80079919,0.00036347,2]
[314525002,1708404647981,-447.7004726,0.00036347,2]
[314525003,1708404647990,-500.0,0.00036347,2]
[314525004,1708404647998,-500.0,0.00036347,2]
[314525005,1708404648007,-500.0,0.00036347,2]
[314525006,1708404648016,-718.04,0.00036347,2]
[314525007,1708404648025,-500.0,0.00036347,2]
[314525008,1708404648034,-500.0,0.00036347,2]
[314525009,1708404648043,-500.0,0.00036347,2]
[314525010,1708404648052,-518.58088735,0.00036347,2]
[314525011,1708404648061,-516.53903107,0.00036347,2]
[314525012,1708404648070,-500.0,0.00036347,2]
[314525013,1708404648079,-1887.95,0.00036347,2]
[314525014,1708404648088,-500.0,0.00036347,2]
[314525015,1708404648098,-500.0,0.00036347,2]
[314525016,1708404648107,-500.0,0.00036347,2]
[314525017,1708404648116,-1098.31,0.00036347,2]
[314525018,1708404648127,-2136.83,0.00036347,2]
[314525019,1708404648136,-500.0,0.00036347,2]
[314525020,1708404648145,-1362.9,0.00036347,2]
[314525021,1708404648154,-541.37357302,0.00036347,2]
[314525022,1708404648163,-500.0,0.00036347,2]
[314525023,1708404648173,-984.24,0.00036347,2]
[314525024,1708404648182,-500.0,0.00036347,2]
[314525025,1708404648191,-500.0,0.00036347,2]
[314525026,1708404648201,-500.0,0.00036347,2]
[314525027,1708404648210,-522.21595353,0.00036347,2]
[314525028,1708404648219,-1767.16,0.00036347,2]
[314525029,1708404648228,-535.10256848,0.00036347,2]
[314525030,1708404648238,-730.58,0.00036347,2]
[314525031,1708404648247,-597.31,0.00036347,2]
[314525032,1708404648256,-500.0,0.00036347,2]
[314525033,1708404648415,-4220.18,0.00036347,2]
[314525034,1708404648425,-500.0,0.00036347,2]
[314525035,1708404648434,-521.65697811,0.00036347,2]
[314525036,1708404648445,-500.0,0.00036347,2]
[314525037,1708404648454,-567.57772252,0.00036347,2]
[314525038,1708404648463,-236.92076202,0.00036347,2]
[314525039,1708404648472,-500.0,0.00036347,2]
[314525040,1708404648481,-2057.42,0.00036347,2]
[314525041,1708404648490,-500.0,0.00036347,2]
[314525042,1708404648499,-528.41022161,0.00036347,2]
[314525043,1708404648509,-500.0,0.00036347,2]
[314525044,1708404648518,-1817.66,0.00036347,2]
[314525045,1708404648527,-1788.78,0.00036347,2]
[314525046,1708404648536,-547.95863561,0.00036347,2]
[314525047,1708404648545,-500.0,0.00036347,2]
[314525048,1708404648554,-566.00490268,0.00036347,2]
[314525049,1708404648563,-555.34966048,0.00036347,2]
[314525050,1708404648573,-500.0,0.00036347,2]
[314525051,1708404648790,-534.03458242,0.00036347,2]
[314525052,1708404648799,-500.0,0.00036347,2]
[314525053,1708404648808,-735.27,0.00036347,2]
[314525054,1708404648818,-500.0,0.00036347,2]
[314525055,1708404648827,-500.0,0.00036347,2]
[314525056,1708404648836,-551.56,0.00036347,2]
[314525057,1708404648845,-500.0,0.00036347,2]
[314525058,1708404648854,-587.99,0.00036347,2]
[314525059,1708404648863,-1012.02,0.00036347,2]
[314525060,1708404648873,-522.06525251,0.00036347,2]
[314525061,1708404648882,-3236.98,0.00036347,2]
[314525062,1708404648891,-500.0,0.00036347,2]
[314525063,1708404648900,-531.02464898,0.00036347,2]
[314525064,1708404648909,-500.0,0.00036347,2]
[314525065,1708404648918,-500.0,0.00036347,2]
[314525066,1708404648928,-1157.33,0.00036347,2]
[314525067,1708404648937,-500.0,0.00036347,2]
[314525068,1708404648946,-786.32,0.00036347,2]
[314525069,1708404648955,-889.72,0.00036347,2]
[314525070,1708404648964,-856.51,0.00036347,2]
[314525071,1708404648974,-500.0,0.00036347,2]
[314525072,1708404648983,-500.0,0.00036347,2]
[314525073,1708404648992,-500.0,0.00036347,2]
[314525074,1708404649001,-1090.54,0.00036347,2]
[314525075,1708404649010,-563.44098059,0.00036347,2]
[314525076,1708404649019,-927.54,0.00036357,2]
[314525077,1708404649028,-1774.41,0.00036357,2]
[314525078,1708404649037,-953.38,0.00036357,2]
[314525079,1708404649046,-1109.66,0.00036357,2]
[314525080,1708404649055,-1555.54,0.00036357,2]
[314525081,1708404649065,-500.0,0.00036357,2]
[314525082,1708404649074,-884.0,0.00036357,2]
[314525083,1708404649083,-1285.99,0.00036357,2]
[314525084,1708404649093,-989.33,0.00036357,2]
[314525085,1708404649102,-1208.46,0.00036357,2]
[314525086,1708404649111,-500.0,0.00036357,2]
[314525087,1708404649122,-20000.0,0.00036368,2]
[314525088,1708404649131,-10624.38632906,0.00036389,2]
[314525089,1708404649141,-10624.38632906,0.00036389,2]
[314525090,1708404649151,-10624.38632906,0.00036389,2]
[314525091,1708404649160,-10624.38632906,0.00036389,2]
[314525092,1708404649169,-10624.38632906,0.00036389,2]
[314525093,1708404649178,-5538.11056031,0.00036392,9]
[314525094,1708404649188,-9982.67192152,0.000364,2]
[314525095,1708404649197,-336.27197189,0.000364,2]
[314525096,1708404649206,-199.62069076,0.00036401,7]
[314525097,1708404649215,-992.00001953,0.00036401,2]
[314525098,1708404649224,-1184.82945646,0.00036401,2]
[314525099,1708404649233,-1822.90360867,0.00036401,2]
[314525100,1708404649242,-619.14841119,0.0003644,7]
[314525101,1708404649254,-200.0,0.00036459,3]
[314525102,1708404649263,-500.0,0.00036467,2]
[314525103,1708404649274,-310.88860147,0.00036467,2]
[314525104,1708404649284,-500.0,0.00036467,2]
[314525105,1708404649293,-500.0,0.00036467,2]
[314525106,1708404649302,-504.51840043,0.00036467,2]
[314525107,1708404649312,-500.0,0.00036467,2]
[314525108,1708404649321,-500.0,0.00036467,2]
[314525109,1708404649331,-213.92057976,0.00036467,2]
[314525110,1708404649340,-500.0,0.00036467,2]
[314525111,1708404649349,-500.0,0.00036467,2]
[314525112,1708404649358,-500.0,0.00036467,2]
[314525113,1708404649367,-500.97457338,0.00036467,2]
[314525114,1708404649378,-500.0,0.00036467,2]
[314525115,1708404649387,-500.20808894,0.00036467,2]
[314525116,1708404649397,-500.0,0.00036467,2]
[314525117,1708404649407,-501.74,0.00036467,2]
[314525118,1708404649417,-534.87,0.00036467,2]
[314525119,1708404649426,-631.04,0.00036467,2]
[314525120,1708404649435,-500.0,0.00036467,2]
[314525121,1708404649445,-500.0,0.00036467,2]
[314525122,1708404649454,-500.0,0.00036467,2]
[314525123,1708404649463,-500.0,0.00036467,2]
[314525124,1708404649472,-500.0,0.00036467,2]
[314525125,1708404649481,-500.0,0.00036467,2]
[314525126,1708404649490,-900.78,0.00036467,2]
[314525127,1708404649499,-500.0,0.00036467,2]
[314525128,1708404649509,-500.0,0.00036467,2]
[314525129,1708404649518,-500.0,0.00036467,2]
[314525130,1708404649527,-682.5,0.00036467,2]
[314525131,1708404649536,-500.0,0.00036467,2]
[314525132,1708404649549,-500.0,0.00036467,2]
[314525133,1708404649571,-500.0,0.00036467,2]
[314525134,1708404649587,-500.0,0.00036467,2]
[314525135,1708404649607,-500.0,0.00036467,2]
[314525136,1708404649626,-611.17,0.00036467,2]
[314525137,1708404649642,-500.0,0.00036467,2]
[314525138,1708404649659,-500.0,0.00036467,2]
[314525139,1708404649675,-294.92893555,0.00036467,2]
[314525140,1708404649693,-500.0,0.00036467,2]
[314525141,1708404649709,-627.69,0.00036467,2]
[314525142,1708404649726,-1084.82,0.00036467,2]
[314525143,1708404649744,-683.2,0.00036467,2]
[314525144,1708404649764,-500.0,0.00036467,2]
[314525145,1708404649776,-509.44059109,0.00036467,2]
[314525146,1708404649792,-1352.08,0.00036467,2]
[314525147,1708404649809,-500.0,0.00036467,2]
[314525148,1708404649822,-500.0,0.00036467,2]
[314525149,1708404649837,-500.0,0.00036467,2]
[314525150,1708404649852,-500.0,0.00036467,2]
[314525151,1708404649867,-510.49,0.00036467,2]
[314525152,1708404649883,-500.0,0.00036467,2]
[314525153,1708404649898,-500.0,0.00036467,2]
[314525154,1708404649913,-715.58,0.00036467,2]
[314525155,1708404649929,-640.98,0.00036467,2]
[314525156,1708404649943,-500.0,0.00036467,2]
[314525157,1708404649958,-975.64,0.00036467,2]
[314525158,1708404649972,-500.0,0.00036467,2]
[314525159,1708404649987,-500.0,0.00036467,2]
[314525160,1708404650001,-500.0,0.00036467,2]
[314525161,1708404650020,-500.0,0.00036467,2]
[314525162,1708404650035,-500.0,0.00036467,2]
[314525163,1708404650049,-500.0,0.00036467,2]
[314525164,1708404650064,-647.66,0.00036467,2]
[314525165,1708404650079,-750.98,0.00036467,2]
[314525166,1708404650094,-500.0,0.00036467,2]
[314525167,1708404650108,-500.0,0.00036467,2]
[314525168,1708404650124,-500.0,0.00036467,2]
[314525169,1708404650139,-524.09,0.00036467,2]
[314525170,1708404650154,-500.0,0.00036467,2]
[314525171,1708404650169,-500.0,0.00036467,2]
[314525172,1708404650184,-500.0,0.00036467,2]
[314525173,1708404650198,-644.94,0.00036467,2]
[314525174,1708404650214,-660.45,0.00036467,2]
[314525175,1708404650230,-596.86,0.00036467,2]
[314525176,1708404650245,-500.0,0.00036467,2]
[314525177,1708404650260,-631.68,0.00036467,2]
[314525178,1708404650276,-500.0,0.00036467,2]
[314525179,1708404650292,-500.0,0.00036467,2]
[314525180,1708404650306,-500.0,0.00036467,2]
[314525181,1708404650322,-614.80871252,0.00036467,2]
[314525182,1708404650339,-500.0,0.00036468,2]
[314525183,1708404650355,-500.0,0.00036468,2]
[314525184,1708404650370,-168.82240679,0.00036468,2]
[314525185,1708404650386,-500.0,0.00036468,2]
[314525186,1708404650401,-506.54452871,0.00036468,2]
[314525187,1708404650417,-500.0,0.00036468,2]